[Event "Titled Tuesday Blitz May 4 2021"]
[White "Yilmaz, Mustafa"]
[Black "Salinas Herrera, Pablo"]
[WhiteFideId "6302718"]
[BlackFideId "3407128"]
[WhiteElo "2518"]
[BlackElo "2541"]
[Result "1-0"]
[Round "11"]
[TimeControl "180+1"]
[Date "2021.05.04"]
[WhiteClock "0:00:19"]
[BlackClock "0:00:01"]

1. d4 {[%clk 0:03:00]}  d5 {[%clk 0:02:59]} 2. c4 {[%clk 0:03:00]}  e6 {[%clk 0:02:59]} 3. Nc3 {[%clk 0:02:54]}  Nf6 {[%clk 0:02:57]} 4. cxd5 {[%clk 0:02:51]}  exd5 {[%clk 0:02:58]} 5. Bg5 {[%clk 0:02:51]}  c6 {[%clk 0:02:59]} 6. e3 {[%clk 0:02:48]}  h6 {[%clk 0:02:59]} 7. Bh4 {[%clk 0:02:47]}  Bd6 {[%clk 0:02:59]} 8. Bd3 {[%clk 0:02:46]}  O-O {[%clk 0:02:59]} 9. Nge2 {[%clk 0:02:42]}  Re8 {[%clk 0:02:59]} 10. Qc2 {[%clk 0:02:39]}  a5 {[%clk 0:02:59]} 11. h3 {[%clk 0:02:29]}  Na6 {[%clk 0:02:59]} 12. a3 {[%clk 0:02:29]}  Nc7 {[%clk 0:02:59]} 13. O-O {[%clk 0:02:30]}  Ne6 {[%clk 0:02:58]} 14. f4 {[%clk 0:02:27]}  Bd7 {[%clk 0:02:44]} 15. Qd2 {[%clk 0:02:25]}  b5 {[%clk 0:02:22]} 16. Ng3 {[%clk 0:02:21]}  Bf8 {[%clk 0:02:18]} 17. Nge2 {[%clk 0:02:08]}  Rb8 {[%clk 0:01:50]} 18. Bf2 {[%clk 0:01:47]}  c5 {[%clk 0:01:44]} 19. dxc5 {[%clk 0:01:37]}  Nxc5 {[%clk 0:01:43]} 20. Bh4 {[%clk 0:01:32]}  Nxd3 {[%clk 0:00:58]} 21. Qxd3 {[%clk 0:01:30]}  Qb6 {[%clk 0:00:58]} 22. Bxf6 {[%clk 0:01:23]}  Rxe3 {[%clk 0:00:57]} 23. Qd4 {[%clk 0:01:13]}  Bc5 {[%clk 0:00:53]} 24. Nxd5 {[%clk 0:01:13]}  Bxd4 {[%clk 0:00:50]} 25. Bxd4 {[%clk 0:01:14]}  Qe6 {[%clk 0:00:08]} 26. Nxe3 {[%clk 0:01:13]}  Bc6 {[%clk 0:00:08]} 27. f5 {[%clk 0:01:07]}  Qe4 {[%clk 0:00:08]} 28. Rf4 {[%clk 0:01:07]}  Qd3 {[%clk 0:00:08]} 29. Rf2 {[%clk 0:00:58]}  Re8 {[%clk 0:00:07]} 30. Rc1 {[%clk 0:00:48]}  Ba8 {[%clk 0:00:07]} 31. Rc3 {[%clk 0:00:45]}  Qb1+ {[%clk 0:00:06]} 32. Rf1 {[%clk 0:00:45]}  Qe4 {[%clk 0:00:05]} 33. b4 {[%clk 0:00:41]}  axb4 {[%clk 0:00:05]} 34. axb4 {[%clk 0:00:42]}  h5 {[%clk 0:00:04]} 35. Bc5 {[%clk 0:00:40]}  Bc6 {[%clk 0:00:04]} 36. Rf4 {[%clk 0:00:39]}  Qb1+ {[%clk 0:00:04]} 37. Kh2 {[%clk 0:00:40]}  Qe1 {[%clk 0:00:04]} 38. Rc2 {[%clk 0:00:36]}  Bb7 {[%clk 0:00:01]} 39. Rf1 {[%clk 0:00:31]}  Qh4 {[%clk 0:00:01]} 40. Nf4 {[%clk 0:00:28]}  Qd8 {[%clk 0:00:01]} 41. Rd1 {[%clk 0:00:20]}  Qc7 {[%clk 0:00:01]} 42. Bd6 {[%clk 0:00:20]}  Qb6 {[%clk 0:00:01]} 43. Bc5 {[%clk 0:00:20]}  Qc7 {[%clk 0:00:01]} 44. Rf2 {[%clk 0:00:19]} 1-0


[Site "https://www.chess.com"]

[Event "Titled Tuesday Blitz May 4 2021"]
[White "Yoo, Christopher Woojin"]
[Black "Shipov, Sergei"]
[WhiteFideId "30909694"]
[BlackFideId "4113624"]
[WhiteElo "2009"]
[BlackElo "2744"]
[Result "1/2-1/2"]
[Round "11"]
[TimeControl "180+1"]
[Date "2021.05.04"]
[WhiteClock "0:00:05"]
[BlackClock "0:00:08"]

1. e4 {[%clk 0:03:00]}  e6 {[%clk 0:02:59]} 2. b3 {[%clk 0:02:59]}  d5 {[%clk 0:02:59]} 3. Bb2 {[%clk 0:02:58]}  Nf6 {[%clk 0:02:55]} 4. e5 {[%clk 0:02:53]}  Nfd7 {[%clk 0:02:55]} 5. f4 {[%clk 0:02:53]}  c5 {[%clk 0:02:54]} 6. Qg4 {[%clk 0:02:51]}  Nc6 {[%clk 0:02:53]} 7. Nf3 {[%clk 0:02:51]}  a6 {[%clk 0:02:39]} 8. Nc3 {[%clk 0:02:47]}  b5 {[%clk 0:02:39]} 9. Be2 {[%clk 0:02:41]}  c4 {[%clk 0:02:38]} 10. O-O {[%clk 0:02:38]}  g6 {[%clk 0:02:38]} 11. d3 {[%clk 0:02:30]}  b4 {[%clk 0:02:37]} 12. Nd1 {[%clk 0:02:28]}  c3 {[%clk 0:02:36]} 13. Bc1 {[%clk 0:02:28]}  Bc5+ {[%clk 0:02:32]} 14. Be3 {[%clk 0:02:27]}  Bxe3+ {[%clk 0:02:29]} 15. Nxe3 {[%clk 0:02:27]}  Qb6 {[%clk 0:02:30]} 16. Kf2 {[%clk 0:02:26]}  O-O {[%clk 0:02:06]} 17. h4 {[%clk 0:02:20]}  Nd4 {[%clk 0:01:49]} 18. Nxd4 {[%clk 0:02:11]}  Qxd4 {[%clk 0:01:49]} 19. h5 {[%clk 0:02:12]}  Kg7 {[%clk 0:01:41]} 20. Rh1 {[%clk 0:02:05]}  a5 {[%clk 0:01:40]} 21. Qh4 {[%clk 0:01:57]}  g5 {[%clk 0:00:37]} 22. Qxg5+ {[%clk 0:01:53]}  Kh8 {[%clk 0:00:37]} 23. Rh4 {[%clk 0:01:32]}  f6 {[%clk 0:00:34]} 24. exf6 {[%clk 0:01:30]}  Nxf6 {[%clk 0:00:34]} 25. Rah1 {[%clk 0:01:04]}  Ra7 {[%clk 0:00:33]} 26. h6 {[%clk 0:01:01]}  e5 {[%clk 0:00:28]} 27. f5 {[%clk 0:00:43]}  e4 {[%clk 0:00:22]} 28. R1h3 {[%clk 0:00:43]}  Rg8 {[%clk 0:00:20]} 29. Qf4 {[%clk 0:00:40]}  Re7 {[%clk 0:00:19]} 30. Rg3 {[%clk 0:00:38]}  Rge8 {[%clk 0:00:18]} 31. Rg7 {[%clk 0:00:30]}  Rxg7 {[%clk 0:00:18]} 32. hxg7+ {[%clk 0:00:30]}  Kxg7 {[%clk 0:00:19]} 33. Kf1 {[%clk 0:00:20]}  Kh8 {[%clk 0:00:18]} 34. Qh6 {[%clk 0:00:20]}  Rg8 {[%clk 0:00:17]} 35. Ng4 {[%clk 0:00:20]}  exd3 {[%clk 0:00:13]} 36. Qxf6+ {[%clk 0:00:10]}  Qxf6 {[%clk 0:00:13]} 37. Nxf6 {[%clk 0:00:11]}  dxe2+ {[%clk 0:00:13]} 38. Ke1 {[%clk 0:00:12]}  Rg7 {[%clk 0:00:12]} 39. g4 {[%clk 0:00:12]}  d4 {[%clk 0:00:10]} 40. Kxe2 {[%clk 0:00:11]}  Ba6+ {[%clk 0:00:11]} 41. Kd1 {[%clk 0:00:10]}  d3 {[%clk 0:00:11]} 42. cxd3 {[%clk 0:00:08]}  Bxd3 {[%clk 0:00:11]} 43. Rh3 {[%clk 0:00:09]}  Rf7 {[%clk 0:00:11]} 44. Nxh7 {[%clk 0:00:03]}  Rxh7 {[%clk 0:00:10]} 45. Rxd3 {[%clk 0:00:03]}  Rh1+ {[%clk 0:00:10]} 46. Kc2 {[%clk 0:00:03]}  Rh2+ {[%clk 0:00:11]} 47. Kc1 {[%clk 0:00:04]}  Rxa2 {[%clk 0:00:10]} 48. f6 {[%clk 0:00:04]}  a4 {[%clk 0:00:10]} 49. bxa4 {[%clk 0:00:03]}  Ra1+ {[%clk 0:00:08]} 50. Kc2 {[%clk 0:00:03]}  Ra2+ {[%clk 0:00:09]} 51. Kb1 {[%clk 0:00:03]}  Rb2+ {[%clk 0:00:09]} 52. Kc1 {[%clk 0:00:04]}  Rf2 {[%clk 0:00:09]} 53. g5 {[%clk 0:00:04]}  Kh7 {[%clk 0:00:08]} 54. a5 {[%clk 0:00:04]}  Kg6 {[%clk 0:00:08]} 55. a6 {[%clk 0:00:04]}  Ra2 {[%clk 0:00:08]} 56. Rf3 {[%clk 0:00:03]}  Rxa6 {[%clk 0:00:07]} 57. f7 {[%clk 0:00:03]}  b3 {[%clk 0:00:07]} 58. Rxc3 {[%clk 0:00:03]}  Kxf7 {[%clk 0:00:07]} 59. Rxb3 {[%clk 0:00:03]}  Kg6 {[%clk 0:00:07]} 60. Rb5 {[%clk 0:00:03]}  Re6 {[%clk 0:00:07]} 61. Kd2 {[%clk 0:00:03]}  Re4 {[%clk 0:00:07]} 62. Kd3 {[%clk 0:00:04]}  Rg4 {[%clk 0:00:08]} 63. Ke3 {[%clk 0:00:05]}  Rxg5 {[%clk 0:00:08]} 64. Rxg5+ {[%clk 0:00:05]}  Kxg5 {[%clk 0:00:08]} 1/2-1/2


[Site "https://www.chess.com"]

[Event "Titled Tuesday Blitz May 4 2021"]
[White "Zaichenko, Daria"]
[Black "Lewtak, Damian"]
[WhiteFideId "4197453"]
[BlackFideId "1141724"]
[WhiteElo "2039"]
[BlackElo "2291"]
[Result "0-1"]
[Round "11"]
[TimeControl "180+1"]
[Date "2021.05.04"]
[WhiteClock "0:00:09"]
[BlackClock "0:00:15"]

1. e4 {[%clk 0:03:00]}  c5 {[%clk 0:02:59]} 2. Nf3 {[%clk 0:03:00]}  d6 {[%clk 0:02:59]} 3. d4 {[%clk 0:03:00]}  cxd4 {[%clk 0:03:00]} 4. Nxd4 {[%clk 0:03:00]}  Nf6 {[%clk 0:03:01]} 5. Nc3 {[%clk 0:03:00]}  Nc6 {[%clk 0:03:00]} 6. Bc4 {[%clk 0:02:55]}  Qb6 {[%clk 0:03:00]} 7. Nxc6 {[%clk 0:02:54]}  bxc6 {[%clk 0:03:01]} 8. O-O {[%clk 0:02:53]}  e5 {[%clk 0:02:55]} 9. Qe1 {[%clk 0:02:52]}  Be7 {[%clk 0:02:51]} 10. Kh1 {[%clk 0:02:49]}  Be6 {[%clk 0:02:50]} 11. Bxe6 {[%clk 0:02:48]}  fxe6 {[%clk 0:02:51]} 12. f4 {[%clk 0:02:40]}  exf4 {[%clk 0:02:51]} 13. Rxf4 {[%clk 0:02:39]}  e5 {[%clk 0:02:49]} 14. Rf1 {[%clk 0:02:38]}  O-O {[%clk 0:02:47]} 15. Be3 {[%clk 0:02:34]}  Qxb2 {[%clk 0:02:41]} 16. Rb1 {[%clk 0:02:30]}  Qxc2 {[%clk 0:02:37]} 17. Rb7 {[%clk 0:02:30]}  Rf7 {[%clk 0:02:35]} 18. Rf2 {[%clk 0:02:03]}  Qd3 {[%clk 0:02:28]} 19. Rf3 {[%clk 0:02:02]}  Raf8 {[%clk 0:02:16]} 20. Bxa7 {[%clk 0:01:52]}  Qc4 {[%clk 0:02:13]} 21. h3 {[%clk 0:01:33]}  Nh5 {[%clk 0:01:58]} 22. Rxf7 {[%clk 0:01:29]}  Rxf7 {[%clk 0:01:52]} 23. Rb8+ {[%clk 0:01:26]}  Bf8 {[%clk 0:01:50]} 24. Qe3 {[%clk 0:01:22]}  Nf4 {[%clk 0:01:37]} 25. Kh2 {[%clk 0:01:10]}  Qf1 {[%clk 0:01:35]} 26. Qg1 {[%clk 0:01:06]}  Qxg1+ {[%clk 0:01:30]} 27. Bxg1 {[%clk 0:01:05]}  d5 {[%clk 0:01:08]} 28. Bc5 {[%clk 0:00:37]}  d4 {[%clk 0:01:02]} 29. Na4 {[%clk 0:00:37]}  Ne6 {[%clk 0:01:00]} 30. Bd6 {[%clk 0:00:35]}  d3 {[%clk 0:00:52]} 31. Nc3 {[%clk 0:00:26]}  d2 {[%clk 0:00:39]} 32. Kg1 {[%clk 0:00:23]}  Rd7 {[%clk 0:00:37]} 33. Bxf8 {[%clk 0:00:19]}  d1=Q+ {[%clk 0:00:35]} 34. Nxd1 {[%clk 0:00:19]}  Rxd1+ {[%clk 0:00:36]} 35. Kf2 {[%clk 0:00:20]}  Nxf8 {[%clk 0:00:36]} 36. a4 {[%clk 0:00:20]}  Ra1 {[%clk 0:00:35]} 37. Ra8 {[%clk 0:00:19]}  c5 {[%clk 0:00:35]} 38. a5 {[%clk 0:00:19]}  Kf7 {[%clk 0:00:33]} 39. a6 {[%clk 0:00:18]}  Ne6 {[%clk 0:00:30]} 40. a7 {[%clk 0:00:15]}  c4 {[%clk 0:00:29]} 41. Rc8 {[%clk 0:00:12]}  Rxa7 {[%clk 0:00:27]} 42. Rxc4 {[%clk 0:00:12]}  Rc7 {[%clk 0:00:27]} 43. Ra4 {[%clk 0:00:12]}  Rc2+ {[%clk 0:00:26]} 44. Kg1 {[%clk 0:00:12]}  Kf6 {[%clk 0:00:20]} 45. Ra6 {[%clk 0:00:11]}  Rd2 {[%clk 0:00:19]} 46. g4 {[%clk 0:00:11]}  h6 {[%clk 0:00:16]} 47. h4 {[%clk 0:00:10]}  g5 {[%clk 0:00:16]} 48. hxg5+ {[%clk 0:00:09]}  hxg5 {[%clk 0:00:16]} 49. Kf1 {[%clk 0:00:08]}  Rd4 {[%clk 0:00:17]} 50. Kf2 {[%clk 0:00:08]}  Rxe4 {[%clk 0:00:17]} 51. Kg3 {[%clk 0:00:08]}  Rf4 {[%clk 0:00:17]} 52. Kh3 {[%clk 0:00:08]}  e4 {[%clk 0:00:17]} 53. Kg3 {[%clk 0:00:08]}  e3 {[%clk 0:00:18]} 54. Ra3 {[%clk 0:00:08]}  Re4 {[%clk 0:00:15]} 55. Kf3 {[%clk 0:00:08]}  e2 {[%clk 0:00:15]} 56. Ra1 {[%clk 0:00:07]}  e1=Q {[%clk 0:00:15]} 57. Rxe1 {[%clk 0:00:07]}  Rxe1 {[%clk 0:00:16]} 58. Kg2 {[%clk 0:00:07]}  Re4 {[%clk 0:00:16]} 59. Kf3 {[%clk 0:00:07]}  Ke5 {[%clk 0:00:17]} 60. Kg3 {[%clk 0:00:08]}  Re3+ {[%clk 0:00:17]} 61. Kf2 {[%clk 0:00:08]}  Kf4 {[%clk 0:00:18]} 62. Kg2 {[%clk 0:00:08]}  Rf3 {[%clk 0:00:18]} 63. Kh2 {[%clk 0:00:09]}  Rg3 {[%clk 0:00:19]} 64. Kh1 {[%clk 0:00:09]}  Kf3 {[%clk 0:00:19]} 65. Kh2 {[%clk 0:00:09]}  Kf2 {[%clk 0:00:17]} 66. Kh1 {[%clk 0:00:09]}  Rh3# {[%clk 0:00:15]} 0-1


[Site "https://www.chess.com"]

[Event "Titled Tuesday Blitz May 4 2021"]
[White "Zemerov, Vladimir"]
[Black "Gabdushev, Ruslan"]
[WhiteFideId "4111583"]
[BlackFideId "4137833"]
[WhiteElo "2277"]
[BlackElo "2312"]
[Result "0-1"]
[Round "11"]
[TimeControl "180+1"]
[Date "2021.05.04"]
[WhiteClock "0:01:35"]
[BlackClock "0:01:31"]

1. e4 {[%clk 0:03:00]}  Nc6 {[%clk 0:02:59]} 2. Nf3 {[%clk 0:03:00]}  d6 {[%clk 0:02:59]} 3. d4 {[%clk 0:02:59]}  Bg4 {[%clk 0:02:58]} 4. h3 {[%clk 0:02:57]}  Bxf3 {[%clk 0:02:57]} 5. gxf3 {[%clk 0:02:57]}  Nf6 {[%clk 0:02:56]} 6. Be3 {[%clk 0:02:57]}  e5 {[%clk 0:02:55]} 7. d5 {[%clk 0:02:52]}  Ne7 {[%clk 0:02:54]} 8. Bb5+ {[%clk 0:02:46]}  c6 {[%clk 0:02:54]} 9. dxc6 {[%clk 0:02:44]}  bxc6 {[%clk 0:02:54]} 10. Be2 {[%clk 0:02:39]}  Ng6 {[%clk 0:02:46]} 11. Nc3 {[%clk 0:02:38]}  Be7 {[%clk 0:02:45]} 12. Qd2 {[%clk 0:02:31]}  O-O {[%clk 0:02:45]} 13. f4 {[%clk 0:02:31]}  exf4 {[%clk 0:02:35]} 14. Bxf4 {[%clk 0:02:31]}  Rb8 {[%clk 0:02:03]} 15. Bc4 {[%clk 0:02:15]}  Rxb2 {[%clk 0:01:55]} 16. Bb3 {[%clk 0:02:14]}  Nxf4 {[%clk 0:01:49]} 17. Qxf4 {[%clk 0:02:14]}  Qa5 {[%clk 0:01:49]} 18. Qd2 {[%clk 0:02:08]}  d5 {[%clk 0:01:39]} 19. exd5 {[%clk 0:01:49]}  Bb4 {[%clk 0:01:38]} 20. O-O {[%clk 0:01:39]}  Bxc3 {[%clk 0:01:36]} 21. Qg5 {[%clk 0:01:35]}  Rxb3 {[%clk 0:01:31]} 0-1


[Site "https://www.chess.com"]

[Event "Titled Tuesday Blitz May 4 2021"]
[White "katchesskat"]
[Black "Suarez Uriel, Adrian"]
[BlackFideId "22230874"]
[WhiteElo "2290"]
[BlackElo "2299"]
[Result "0-1"]
[Round "11"]
[TimeControl "180+1"]
[Date "2021.05.04"]
[WhiteClock "0:00:01"]
[BlackClock "0:00:16"]

1. c4 {[%clk 0:02:45]}  b6 {[%clk 0:02:58]} 2. e3 {[%clk 0:02:44]}  Bb7 {[%clk 0:02:58]} 3. a3 {[%clk 0:02:45]}  g6 {[%clk 0:02:57]} 4. Qc2 {[%clk 0:02:45]}  Bg7 {[%clk 0:02:57]} 5. Be2 {[%clk 0:02:45]}  c5 {[%clk 0:02:57]} 6. Nf3 {[%clk 0:02:45]}  Nf6 {[%clk 0:02:57]} 7. d3 {[%clk 0:02:45]}  O-O {[%clk 0:02:57]} 8. Nbd2 {[%clk 0:02:46]}  d5 {[%clk 0:02:56]} 9. cxd5 {[%clk 0:02:45]}  Nxd5 {[%clk 0:02:56]} 10. O-O {[%clk 0:02:44]}  Nd7 {[%clk 0:02:56]} 11. h3 {[%clk 0:02:44]}  e5 {[%clk 0:02:56]} 12. Re1 {[%clk 0:02:44]}  Re8 {[%clk 0:02:56]} 13. Nh2 {[%clk 0:02:43]}  f5 {[%clk 0:02:56]} 14. b3 {[%clk 0:02:43]}  e4 {[%clk 0:02:56]} 15. Bb2 {[%clk 0:02:42]}  exd3 {[%clk 0:02:53]} 16. Bxd3 {[%clk 0:02:43]}  Ne5 {[%clk 0:02:52]} 17. Be2 {[%clk 0:02:42]}  Qc7 {[%clk 0:02:50]} 18. Rac1 {[%clk 0:02:41]}  Rad8 {[%clk 0:02:50]} 19. Nc4 {[%clk 0:02:41]}  Ba8 {[%clk 0:02:44]} 20. Nf3 {[%clk 0:02:37]}  Nxf3+ {[%clk 0:02:38]} 21. Bxf3 {[%clk 0:02:38]}  Bh6 {[%clk 0:02:32]} 22. Bxd5+ {[%clk 0:02:27]}  Bxd5 {[%clk 0:02:29]} 23. Rcd1 {[%clk 0:02:23]}  b5 {[%clk 0:02:08]} 24. Nd2 {[%clk 0:01:20]}  Qb7 {[%clk 0:02:00]} 25. Qc3 {[%clk 0:01:18]}  Bg7 {[%clk 0:02:01]} 26. Qxg7+ {[%clk 0:01:17]}  Qxg7 {[%clk 0:02:02]} 27. Bxg7 {[%clk 0:01:17]}  Kxg7 {[%clk 0:02:03]} 28. Rc1 {[%clk 0:01:17]}  Bxg2 {[%clk 0:01:56]} 29. Kxg2 {[%clk 0:01:17]}  Rxd2 {[%clk 0:01:57]} 30. Rxc5 {[%clk 0:01:17]}  f4 {[%clk 0:01:45]} 31. e4 {[%clk 0:01:11]}  f3+ {[%clk 0:01:43]} 32. Kg3 {[%clk 0:01:09]}  a6 {[%clk 0:01:32]} 33. Re3 {[%clk 0:01:06]}  Ra2 {[%clk 0:01:29]} 34. Rc7+ {[%clk 0:01:02]}  Kh6 {[%clk 0:01:29]} 35. b4 {[%clk 0:00:59]}  Re5 {[%clk 0:01:21]} 36. h4 {[%clk 0:00:58]}  Ra1 {[%clk 0:01:20]} 37. Kxf3 {[%clk 0:00:54]}  Rh5 {[%clk 0:01:16]} 38. e5 {[%clk 0:00:50]}  Rf5+ {[%clk 0:01:09]} 39. Kg3 {[%clk 0:00:36]}  Rg1+ {[%clk 0:01:08]} 40. Kh2 {[%clk 0:00:35]}  Rg4 {[%clk 0:01:03]} 41. f3 {[%clk 0:00:27]}  Rxh4+ {[%clk 0:00:52]} 42. Kg3 {[%clk 0:00:27]}  Rhh5 {[%clk 0:00:34]} 43. f4 {[%clk 0:00:23]}  g5 {[%clk 0:00:30]} 44. Re4 {[%clk 0:00:01]}  gxf4+ {[%clk 0:00:26]} 45. Rxf4 {[%clk 0:00:02]}  Rhg5+ {[%clk 0:00:24]} 46. Kf3 {[%clk 0:00:01]}  Rxe5 {[%clk 0:00:24]} 47. Rc6+ {[%clk 0:00:01]}  Rg6 {[%clk 0:00:24]} 48. Rxg6+ {[%clk 0:00:01]}  hxg6 {[%clk 0:00:16]} 0-1


[Site "https://www.chess.com"]

[Event "Titled Tuesday Blitz May 4 2021"]
[White "tylityli"]
[Black "Mohandesi, Shahin"]
[BlackFideId "12501247"]
[WhiteElo "2345"]
[BlackElo "1993"]
[Result "0-1"]
[Round "11"]
[TimeControl "180+1"]
[Date "2021.05.04"]
[WhiteClock "0:00:05"]
[BlackClock "0:00:58"]

1. d4 {[%clk 0:03:00]}  Nf6 {[%clk 0:02:59]} 2. c4 {[%clk 0:03:00]}  e6 {[%clk 0:02:59]} 3. Nc3 {[%clk 0:02:59]}  Bb4 {[%clk 0:03:00]} 4. e3 {[%clk 0:02:59]}  b6 {[%clk 0:03:00]} 5. Ne2 {[%clk 0:03:00]}  Ne4 {[%clk 0:02:58]} 6. Qc2 {[%clk 0:02:59]}  Bb7 {[%clk 0:02:55]} 7. a3 {[%clk 0:02:59]}  Nxc3 {[%clk 0:02:56]} 8. Nxc3 {[%clk 0:02:54]}  Bxc3+ {[%clk 0:02:54]} 9. Qxc3 {[%clk 0:02:54]}  Qf6 {[%clk 0:02:54]} 10. f3 {[%clk 0:02:37]}  d6 {[%clk 0:02:44]} 11. e4 {[%clk 0:02:29]}  e5 {[%clk 0:02:41]} 12. Be3 {[%clk 0:02:23]}  Nc6 {[%clk 0:02:40]} 13. d5 {[%clk 0:02:12]}  Ne7 {[%clk 0:02:38]} 14. O-O-O {[%clk 0:02:06]}  h5 {[%clk 0:02:33]} 15. h4 {[%clk 0:02:04]}  Qg6 {[%clk 0:02:22]} 16. Bg5 {[%clk 0:01:46]}  f6 {[%clk 0:02:22]} 17. Be3 {[%clk 0:01:45]}  f5 {[%clk 0:02:22]} 18. Bg5 {[%clk 0:01:22]}  fxe4 {[%clk 0:01:55]} 19. fxe4 {[%clk 0:01:21]}  Qxe4 {[%clk 0:01:56]} 20. Bd3 {[%clk 0:01:18]}  Qg4 {[%clk 0:01:55]} 21. Rde1 {[%clk 0:00:59]}  Bc8 {[%clk 0:01:31]} 22. Rhf1 {[%clk 0:00:38]}  Bf5 {[%clk 0:01:28]} 23. Rxe5 {[%clk 0:00:29]}  dxe5 {[%clk 0:01:19]} 24. Qxe5 {[%clk 0:00:28]}  O-O {[%clk 0:01:10]} 25. Be2 {[%clk 0:00:09]}  Qe4 {[%clk 0:01:01]} 26. Qxe7 {[%clk 0:00:05]}  Qc2# {[%clk 0:00:58]} 0-1


[Site "https://www.chess.com"]